bitfinex-derivatives/quotes_BNBF0:USTF0_20250904
["timestamp","ask_amount","ask_price","bid_price","bid_amount"]
[1756997493668,0.72103447,847.67,846.78,0.78962614]
[1756997494268,0.72103447,847.67,846.77,0.78962614]
[1756997494465,0.72103447,847.68,846.77,0.78962614]
[1756997495268,0.72103447,847.68,846.76,0.78962614]
[1756997495865,1.51528903,847.69,846.71,0.78962614]
[1756997496068,0.72103447,847.68,846.71,0.78962614]
[1756997496270,0.72103447,847.68,846.7,0.78962614]
[1756997496467,0.72103447,847.69,846.7,0.78962614]
[1756997497469,1.51528903,847.69,846.7,0.78962614]
[1756997497769,0.72103447,847.68,846.7,0.78962614]
[1756997498364,0.72103447,847.68,846.69,0.78962614]
[1756997498567,0.72103447,847.69,846.69,0.78962614]
[1756997498770,0.72103447,847.69,846.7,0.78962614]
[1756997499264,0.72103447,847.69,846.69,0.78962614]
[1756997500370,0.72103447,847.69,846.68,0.78962614]
[1756997500570,0.72103447,847.7,846.68,0.78962614]
[1756997500970,0.72103447,847.7,846.44,0.20528733]
[1756997500971,0.72103447,847.7,846.67,0.78962614]
[1756997501171,0.72103447,847.72,846.67,0.78962614]
[1756997501368,0.72103447,847.72,846.66,0.78962614]
[1756997502272,0.72103447,847.72,846.65,0.78962614]
[1756997502466,0.72103447,847.73,846.65,0.78962614]
[1756997503574,1.51528903,847.73,846.64,0.78962614]
[1756997503775,0.72103447,847.72,846.64,0.78962614]
[1756997504274,0.72103447,847.72,846.63,0.78962614]
[1756997505775,0.72103447,847.72,846.64,0.78962614]
[1756997505776,0.79425456,847.71,846.64,0.78962614]
[1756997506075,0.79425456,847.66,846.54,0.78962614]
[1756997506276,0.72103447,847.65,846.54,0.78962614]
[1756997506571,0.72103447,847.65,846.53,0.78962614]
[1756997506772,0.72103447,847.66,846.53,0.78962614]
[1756997506975,0.72103447,847.66,846.52,0.78962614]
[1756997506976,0.79425456,847.65,846.52,0.78962614]
[1756997507271,0.72103447,847.64,846.52,0.78962614]
[1756997507476,0.79425456,847.62,846.54,0.78962614]
[1756997507670,0.72103447,847.61,846.54,0.78962614]
[1756997508369,0.72103447,847.61,846.5,0.78962614]
[1756997508572,0.79425456,847.64,846.46,0.78962614]
[1756997508771,0.72103447,847.63,846.46,0.78962614]
[1756997508975,0.72103447,847.63,846.47,0.78962614]
[1756997509176,0.72103447,847.64,846.47,0.78962614]
[1756997509475,0.72103447,847.64,846.46,0.78962614]
[1756997509677,1.51528903,847.65,846.46,0.78962614]
[1756997509871,0.72103447,847.64,846.46,0.78962614]
[1756997510273,0.72103447,847.64,846.45,0.78962614]
[1756997510472,0.79425456,847.61,846.43,0.78962614]
[1756997510671,0.72103447,847.6,846.43,0.78962614]
[1756997511276,0.72103447,847.6,846.31,0.20539335]
[1756997511277,0.72103447,847.6,846.42,0.78962614]
[1756997511576,0.72103447,847.61,846.42,0.78962614]
[1756997512176,0.72103447,847.61,846.41,0.78962614]
[1756997512377,0.72103447,847.61,846.42,0.78962614]
[1756997512570,0.72103447,847.62,846.42,0.78962614]
[1756997513377,0.72103447,847.62,846.41,0.78962614]
[1756997514178,0.71878331,847.62,846.41,0.78962614]
[1756997515175,1.51303787,847.62,846.42,0.78962614]
[1756997515480,0.71878331,847.61,846.41,0.78962614]
[1756997515978,0.71763785,847.61,846.4,0.78962614]
[1756997516278,0.71763785,847.64,846.39,0.78962614]
[1756997516478,0.71763785,847.64,846.4,0.78962614]
[1756997516773,0.71760802,847.64,846.4,0.78962614]
[1756997517279,0.71760802,847.64,846.39,0.78962614]
[1756997517580,0.79425456,847.63,846.41,0.78962614]
[1756997517878,0.79425456,847.61,846.42,0.78962614]
[1756997518179,0.71760802,847.6,846.42,0.78962614]
[1756997519480,0.71760802,847.6,846.41,0.78962614]
[1756997519777,0.79425456,847.56,846.37,0.78962614]
[1756997520081,0.71760802,847.55,846.37,0.78962614]
[1756997520277,0.71760802,847.56,846.37,0.78962614]
[1756997521180,0.71760802,847.56,846.38,0.78962614]
[1756997521380,0.71760802,847.57,846.38,0.78962614]
[1756997522281,0.71760802,847.57,846.39,0.78962614]
[1756997523276,0.71760802,847.57,846.41,0.78962614]
[1756997523478,0.79425456,847.55,846.41,0.78962614]
[1756997523681,0.71760802,847.54,846.41,0.78962614]
[1756997523982,0.71760802,847.54,846.42,0.78962614]
[1756997524682,1.51186258,847.54,846.42,0.78962614]
[1756997524881,0.71760802,847.53,846.42,0.78962614]
[1756997525683,0.79425456,847.51,846.43,0.78962614]
[1756997525882,0.71760802,847.5,846.4,0.78962614]
[1756997526083,0.71760802,847.54,846.4,0.78962614]
[1756997526379,1.51198001,847.54,846.4,0.78962614]
[1756997526583,0.71772545,847.53,846.4,0.78962614]
[1756997527580,0.71772545,847.54,846.4,0.78962614]
[1756997528080,0.71772545,847.54,846.31,0.20539335]
[1756997528081,0.71772545,847.54,846.41,0.78962614]
[1756997528284,1.51198001,847.55,846.42,0.78962614]
[1756997528480,0.71772545,847.54,846.42,0.78962614]
[1756997529184,0.71772545,847.54,846.43,0.78962614]
[1756997529386,0.79425456,847.55,846.43,0.78962614]
[1756997529584,0.71800277,847.54,846.43,0.78962614]
[1756997530186,1.51225733,847.54,846.43,0.78962614]
[1756997530383,0.71800277,847.53,846.43,0.78962614]
[1756997530585,0.71800277,847.54,846.43,0.78962614]
[1756997530885,0.71800277,847.55,846.43,0.78962614]
[1756997531079,0.71800277,847.57,846.41,0.7891135]
[1756997531281,0.71800277,847.57,846.42,0.7891135]
[1756997532184,1.50956439,847.57,846.43,0.7891135]
[1756997532480,0.71800277,847.56,846.42,0.7891135]
[1756997532678,0.79156162,847.58,846.42,0.7891135]
[1756997532679,0.71800277,847.57,846.42,0.7891135]
[1756997533281,0.71800277,847.57,846.43,0.7891135]
[1756997533282,1.50956439,847.57,846.43,0.7891135]
[1756997533483,0.71800277,847.56,846.43,0.7891135]
[1756997533683,1.50956439,847.56,846.42,0.7891135]
[1756997533883,0.71800277,847.55,846.42,0.7891135]
[1756997534288,1.50956439,847.55,846.44,0.7891135]
[1756997534486,0.71800277,847.54,846.44,0.7891135]
[1756997534782,1.50956439,847.54,846.42,0.7891135]
[1756997534986,0.71800277,847.53,846.42,0.7891135]
[1756997535286,1.50956439,847.53,846.44,0.7891135]
[1756997535581,1.50956439,847.52,846.43,0.7891135]
[1756997535786,1.50956439,847.51,846.44,0.7891135]
[1756997535985,0.79156162,847.48,846.41,0.7891135]
[1756997536181,0.79156162,847.43,846.37,0.7891135]
[1756997536482,0.79156162,847.35,846.35,0.7891135]
[1756997536686,0.71800277,847.34,846.35,0.7891135]
[1756997537383,0.71800277,847.34,846.31,0.20539335]
[1756997537687,0.79261107,847.36,846.36,0.79031982]
[1756997537987,1.51061384,847.35,846.35,0.79031982]
[1756997538287,1.51061384,847.34,846.37,0.79031982]
[1756997538586,1.0574839,847.53,846.36,0.79031982]
[1756997538587,0.71800277,847.33,846.36,0.79031982]
[1756997538783,0.71800277,847.34,846.36,0.79031982]
[1756997539383,1.51061384,847.34,846.37,0.79031982]
[1756997539588,0.71800277,847.33,846.37,0.79031982]
[1756997540087,0.79261107,847.35,846.37,0.79031982]
[1756997540088,0.71800277,847.34,846.37,0.79031982]
[1756997540287,0.71800277,847.34,846.31,0.20539335]
[1756997540288,1.51061384,847.34,846.38,0.79031982]
[1756997540485,0.71800277,847.33,846.38,0.79031982]
[1756997540988,0.71800277,847.33,846.39,0.79031982]
[1756997541185,1.51061384,847.33,846.39,0.79031982]
[1756997541388,0.71800277,847.32,846.39,0.79031982]
[1756997541585,0.71800277,847.32,846.4,0.79031982]
[1756997541791,0.71800277,847.33,846.4,0.79031982]
[1756997542392,0.71800277,847.33,846.31,0.20539335]
[1756997542393,1.51061384,847.33,846.39,0.79031982]
[1756997542593,0.71800277,847.32,846.39,0.79031982]
[1756997545898,0.71800277,847.32,846.31,0.20539335]
[1756997545899,0.71800277,847.32,846.45,0.79031982]
[1756997546194,0.71800277,847.34,846.5,0.79031982]
[1756997546397,0.71800277,847.36,846.5,0.79031982]
[1756997547298,0.71800277,847.36,846.51,0.79031982]
[1756997547494,1.51061384,847.36,846.5,0.79031982]
[1756997547693,0.71800277,847.35,846.5,0.79031982]
[1756997547898,0.71800277,847.35,846.51,0.79031982]
[1756997549395,1.51061384,847.35,846.52,0.79031982]
[1756997549595,0.71800277,847.34,846.52,0.79031982]
[1756997549799,0.71800277,847.35,846.52,0.79031982]
[1756997550301,1.51061384,847.35,846.52,0.79031982]
[1756997550601,0.71800277,847.34,846.52,0.79031982]
[1756997550803,0.71800277,847.34,846.38,1.0563581]
[1756997551103,0.79345177,847.34,846.53,0.79074714]
[1756997551403,0.71800277,847.33,846.54,0.79074714]
[1756997551902,0.71800277,847.33,846.59,0.79074714]
[1756997552102,0.71800277,847.4,846.59,0.79074714]
[1756997552502,1.51145454,847.4,846.59,0.79074714]
[1756997552699,0.71800277,847.39,846.59,0.79074714]
[1756997553304,0.71800277,847.39,846.6,0.79074714]
[1756997554203,0.71800277,847.39,846.52,0.79074714]
[1756997554500,0.71800277,847.51,846.61,0.79074714]
[1756997554701,0.71800277,847.6,846.61,0.79074714]
[1756997555401,0.71800277,847.6,846.62,0.79074714]
[1756997556507,1.51145454,847.6,846.62,0.79074714]
[1756997556707,0.71800277,847.59,846.62,0.79074714]
[1756997558210,1.51145454,847.59,846.61,0.79074714]
[1756997558408,0.20528188,847.74,846.61,0.79074714]
[1756997558409,1.51145454,847.58,846.61,0.79074714]
[1756997558608,0.71800277,847.57,846.61,0.79074714]
[1756997559311,0.71800277,847.57,846.62,0.79074714]
[1756997561311,1.51145454,847.57,846.63,0.79074714]
[1756997561612,0.71800277,847.56,846.63,0.79074714]
[1756997562312,1.51315811,847.56,846.63,0.79074714]
[1756997562610,0.71970634,847.55,846.63,0.79074714]
[1756997563409,0.71970634,847.56,846.63,0.79074714]
[1756997564212,0.71970634,847.56,846.31,0.20539335]
[1756997564213,0.79345177,847.49,846.68,0.79074714]
[1756997564413,0.71970634,847.48,846.69,0.79074714]
[1756997565212,1.51315811,847.48,846.69,0.79074714]
[1756997565410,0.71970634,847.47,846.69,0.79074714]
[1756997566414,1.51315811,847.47,846.68,0.79074714]
[1756997566710,0.71970634,847.46,846.68,0.79074714]
[1756997567013,0.71970634,847.46,846.69,0.79074714]
[1756997567216,1.51315811,847.47,846.69,0.79074714]
[1756997567514,0.79345177,847.44,846.71,0.79074714]
[1756997567714,0.71970634,847.43,846.71,0.79074714]
[1756997568509,0.71970634,847.43,846.61,0.79074714]
[1756997568714,0.71970634,847.5,846.61,0.79074714]
[1756997569814,1.51315811,847.5,846.61,0.79074714]
[1756997570008,1.51315811,847.49,846.59,0.79074714]
[1756997570209,0.71970634,847.48,846.59,0.79074714]
[1756997570414,0.79345177,847.46,846.56,0.79074714]
[1756997570614,0.71970634,847.45,846.56,0.79074714]
[1756997571113,0.71970634,847.45,846.55,0.79074714]
[1756997571313,0.71970634,847.46,846.55,0.79074714]
[1756997572113,0.72005497,847.46,846.55,0.79074714]
[1756997573414,1.51350674,847.46,846.55,0.79074714]
[1756997573718,0.72005497,847.45,846.55,0.79074714]
[1756997574316,0.79345177,847.42,846.49,0.79074714]
[1756997574514,0.79345177,847.36,846.53,0.79074714]
[1756997575016,0.79345177,847.38,846.52,0.79074714]
[1756997576318,0.79345177,847.33,846.48,0.79074714]
[1756997576521,0.79345177,847.32,846.47,0.79074714]
[1756997576720,0.72013106,847.31,846.47,0.79074714]
[1756997580919,0.79345177,847.3,846.48,0.79074714]
[1756997581123,0.72013106,847.29,846.46,0.79074714]
[1756997581418,0.72013106,847.3,846.46,0.79074714]
[1756997581620,1.51358283,847.3,846.47,0.79074714]
[1756997581818,0.72013106,847.29,846.47,0.79074714]
[1756997582422,0.72013106,847.29,846.26,1.0563581]
[1756997582423,0.72013106,847.29,846.46,0.79074714]
[1756997583819,0.72013106,847.3,846.46,0.79074714]
[1756997584224,1.51358283,847.3,846.48,0.79074714]
[1756997584424,0.72013106,847.29,846.48,0.79074714]
[1756997584923,0.79345177,847.28,846.49,0.79074714]
[1756997585124,0.72013106,847.27,846.49,0.79074714]
[1756997585725,0.72013106,847.28,846.49,0.79074714]
[1756997586124,0.72013106,847.28,846.47,0.79074714]
[1756997586324,0.72013106,847.31,846.47,0.79074714]
[1756997588625,0.72013106,847.31,846.49,0.79074714]
[1756997588826,0.72013106,847.33,846.5,0.79074714]
[1756997589021,0.72013106,847.34,846.5,0.79074714]
[1756997589526,0.72013106,847.34,846.51,0.79074714]
[1756997589821,0.79345177,847.34,846.54,0.79074714]
[1756997590027,0.72013106,847.33,846.57,0.79074714]
[1756997590326,0.79345177,847.37,846.16,0.20542608]
[1756997590327,0.72013106,847.36,846.61,0.79074714]
[1756997590527,0.72013106,847.4,846.6,0.79074714]
[1756997591823,0.79345177,847.36,846.64,0.79074714]
[1756997592027,0.72013106,847.35,846.48,1.0563581]
[1756997592222,0.79438087,847.36,846.64,0.79239253]
[1756997592423,0.72013106,847.35,846.64,0.79239253]
[1756997593132,1.51451193,847.35,846.64,0.79239253]
[1756997593329,0.79438087,847.33,846.62,0.79239253]
[1756997593532,0.72013106,847.32,846.62,0.79239253]
[1756997595534,0.72013106,847.32,846.61,0.79239253]
[1756997595729,0.72013106,847.35,846.61,0.79239253]
[1756997598436,1.51451193,847.35,846.61,0.79239253]
[1756997598735,0.72013106,847.34,846.61,0.79239253]
[1756997599338,0.72013106,847.34,846.62,0.79239253]
[1756997599632,0.72013106,847.35,846.63,0.79239253]
[1756997600038,0.72013106,847.36,846.64,0.79239253]
[1756997600333,1.51451193,847.36,846.64,0.79239253]
[1756997600532,0.72013106,847.35,846.64,0.79239253]
[1756997601437,1.51451193,847.35,846.62,0.79239253]
[1756997601635,1.51451193,847.34,846.62,0.79239253]
[1756997601832,0.72013106,847.33,846.62,0.79239253]
[1756997602236,0.72013106,847.34,846.62,0.79239253]
[1756997602432,1.51451193,847.34,846.62,0.79239253]
[1756997602637,0.72013106,847.33,846.62,0.79239253]
[1756997602933,0.72013106,847.34,846.62,0.79239253]
[1756997604437,1.51451193,847.34,846.62,0.79239253]
[1756997604635,0.72013106,847.33,846.62,0.79239253]
[1756997605239,0.72013106,847.33,846.63,0.79239253]
[1756997605436,0.79438087,847.31,846.65,0.79239253]
[1756997605636,1.51451193,847.3,846.64,0.79239253]
[1756997605936,0.72013106,847.29,846.64,0.79239253]
[1756997606139,0.72013106,847.29,846.6,0.79239253]
[1756997606342,0.72013106,847.35,846.6,0.79239253]
[1756997606537,1.51451193,847.35,846.6,0.79239253]
[1756997606737,0.72013106,847.34,846.61,0.79239253]
[1756997606939,0.72013106,847.35,846.61,0.79239253]
[1756997607337,0.72013106,847.35,846.6,0.79239253]
[1756997607642,0.72013106,847.35,846.61,0.79239253]
[1756997607841,1.51451193,847.36,846.6,0.79239253]
[1756997608038,0.72013106,847.35,846.6,0.79239253]
[1756997611045,0.72013106,847.35,846.58,0.79239253]
[1756997611239,0.72013106,847.38,846.58,0.79239253]
[1756997612242,1.51451193,847.38,846.58,0.79239253]
[1756997612440,0.72013106,847.37,846.58,0.79239253]
[1756997612642,0.72013106,847.37,846.59,0.79239253]
[1756997612841,0.72013106,847.38,846.59,0.79239253]
[1756997615242,0.72096208,847.38,846.59,0.79239253]
[1756997615647,0.72097779,847.38,846.59,0.79239253]
[1756997616446,1.51535866,847.39,846.59,0.79239253]
[1756997616646,0.72097779,847.38,846.59,0.79239253]
[1756997617247,0.72097779,847.38,846.38,1.0563581]
[1756997617248,1.51535866,847.38,846.58,0.79239253]
[1756997617447,0.72097779,847.37,846.59,0.79239253]
[1756997618052,0.72097779,847.37,846.53,0.79239253]
[1756997618251,0.79438087,847.26,846.38,0.79239253]
[1756997618450,0.72097779,847.25,846.38,0.79239253]
[1756997620655,0.72097779,847.26,846.38,0.79239253]
[1756997621149,0.72097779,847.26,846.37,0.79239253]
[1756997621449,1.51535866,847.27,846.35,0.79239253]
[1756997621752,0.79438087,847.25,846.36,0.79239253]
[1756997621950,0.72097779,847.24,846.36,0.79239253]
[1756997622748,0.72097779,847.25,846.36,0.79239253]
[1756997625354,0.79438087,847.24,846.37,0.79239253]
[1756997625554,0.72097779,847.23,846.37,0.79239253]
[1756997626155,0.72097779,847.23,846.35,0.79239253]
[1756997626356,0.72097779,847.25,846.35,0.79239253]
[1756997627254,1.51535866,847.25,846.36,0.79239253]
[1756997627449,1.51535866,847.24,846.37,0.79239253]
[1756997627651,0.72097779,847.23,846.37,0.79239253]
[1756997627955,1.51535866,847.23,846.38,0.79239253]
[1756997628155,2.6437098,848.52,846.38,0.79239253]
[1756997628156,1.51535866,847.22,846.38,0.79239253]
[1756997628455,0.72097779,847.21,846.38,0.79239253]
[1756997631355,0.72097779,847.22,846.38,0.79239253]
[1756997632355,0.72097779,847.22,846.36,0.79239253]
[1756997632557,0.72097779,847.24,846.36,0.79239253]
[1756997635358,0.72097779,847.24,846.35,0.79239253]
[1756997635568,0.72097779,847.25,846.35,0.79239253]
[1756997636066,0.79438087,847.24,846.36,0.79239253]
[1756997636268,0.72097779,847.23,846.35,0.79239253]
[1756997636468,0.72097779,847.25,846.35,0.79239253]
[1756997636767,0.72097779,847.25,846.34,0.79239253]
[1756997637366,0.79438087,847.27,846.34,0.79239253]
[1756997637765,0.72022033,847.26,846.34,0.79239253]
[1756997637964,0.79438087,847.29,846.35,0.79239253]
[1756997639866,0.72017163,847.28,846.35,0.79239253]
[1756997641070,1.5145525,847.28,846.36,0.79239253]
[1756997641371,0.72017163,847.27,846.35,0.79239253]
[1756997641669,0.72017163,847.29,846.35,0.79239253]
[1756997642264,0.79438087,847.28,846.36,0.79239253]
[1756997642468,0.72017163,847.27,846.36,0.79239253]
[1756997644772,0.72017163,847.27,846.36,0.79206241]
[1756997646073,0.79441382,847.26,846.37,0.79206241]
[1756997646372,0.72017163,847.25,846.35,0.79206241]
[1756997646573,0.79441382,847.26,846.37,0.79206241]
[1756997646768,0.72017163,847.25,846.37,0.79206241]
[1756997647171,0.72017163,847.25,846.36,0.79206241]
[1756997647172,0.79441382,847.24,846.36,0.79206241]
[1756997647372,0.72017163,847.23,846.36,0.79206241]
[1756997648270,0.72017163,847.24,846.35,0.79206241]
[1756997648575,0.72017163,847.24,846.36,0.79206241]
[1756997648770,0.72017163,847.24,846.35,0.79206241]
[1756997649276,0.72017163,847.24,846.32,0.79206241]
[1756997649475,0.72017163,847.28,846.32,0.79206241]
[1756997649672,0.72017163,847.28,846.33,0.79206241]
[1756997653782,0.72002307,847.28,846.33,0.79206241]
[1756997653977,0.72002307,847.28,846.16,0.20542608]
[1756997653978,0.72002307,847.28,846.34,0.79206241]
[1756997654178,0.72002307,847.29,846.34,0.79206241]
[1756997656083,0.79441382,847.28,846.36,0.79206241]
[1756997656378,2.6437098,848.63,846.34,0.79206241]
[1756997656379,0.72002307,847.27,846.34,0.79206241]
[1756997656578,0.72002307,847.29,846.35,0.79206241]
[1756997657483,1.51443689,847.29,846.35,0.79206241]
[1756997657783,0.72002307,847.28,846.35,0.79206241]
[1756997659184,0.79441382,847.26,846.37,0.79206241]
[1756997659485,0.72002307,847.25,846.37,0.79206241]
[1756997660287,1.51443689,847.25,846.3,0.79206241]
[1756997660484,0.79441382,847.2,846.3,0.79206241]
[1756997660784,0.72002307,847.19,846.3,0.79206241]
[1756997661582,1.51443689,847.19,846.3,0.79206241]
[1756997661780,0.72002307,847.18,846.3,0.79206241]
[1756997662382,0.72002307,847.18,846.31,0.79206241]
[1756997665291,0.72002307,847.18,846.32,0.79206241]
[1756997665488,1.51443689,847.19,846.32,0.79206241]
[1756997665791,0.79441382,847.17,846.34,0.79206241]
[1756997665991,0.72002307,847.16,846.34,0.79206241]
[1756997667292,1.51443689,847.16,846.34,0.79206241]
[1756997667590,0.72002307,847.15,846.34,0.79206241]
[1756997668291,0.72002307,847.15,846.35,0.79206241]
[1756997668587,1.51443689,847.15,846.34,0.79206241]
[1756997668792,0.72002307,847.14,846.34,0.79206241]
[1756997669792,0.72053077,847.14,846.34,0.79206241]
[1756997669989,0.79441382,847.06,846.4,0.79206241]
[1756997670193,0.72053077,847.05,846.4,0.79206241]
[1756997670390,0.79441382,847.03,846.41,0.79206241]
[1756997670594,0.72053077,847.02,846.41,0.79206241]
[1756997671394,0.72053077,847.02,846.42,0.79206241]
[1756997672090,0.79441382,846.99,846.4,0.79206241]
[1756997672296,0.72053077,846.98,846.36,0.79206241]
[1756997672591,0.72053077,846.98,846.16,0.20542608]
[1756997672592,0.79441382,846.97,846.28,0.79206241]
[1756997672794,0.72053077,846.96,846.28,0.79206241]
[1756997673595,0.72053077,846.96,846.3,0.79206241]
[1756997673796,0.72053077,846.97,846.3,0.79206241]
[1756997674190,0.72053077,846.97,846.16,0.20542608]
[1756997674191,0.72053077,846.97,846.29,0.79206241]
[1756997674395,0.72053077,846.97,846.3,0.79206241]
[1756997675297,1.51494459,846.97,846.31,0.79206241]
[1756997675498,0.72053077,846.96,846.31,0.79206241]
[1756997676296,0.72053077,846.96,846.32,0.79206241]
[1756997676496,1.51494459,846.96,846.32,0.79206241]
[1756997676695,0.72053077,846.95,846.32,0.79206241]
[1756997677195,0.72053077,846.95,846.31,0.79206241]
[1756997677399,1.51494459,846.95,846.33,0.79206241]
[1756997677600,0.72053077,846.94,846.33,0.79206241]
[1756997678100,0.72053077,846.94,846.32,0.79206241]
[1756997679401,0.72053077,846.95,846.32,0.79206241]
[1756997679998,0.79441382,846.96,846.33,0.79206241]
[1756997680198,0.72107927,846.95,846.32,0.79206241]
[1756997680398,1.51549309,846.96,846.33,0.79206241]
[1756997680601,0.72107927,846.95,846.33,0.79206241]
[1756997680902,1.51549309,846.95,846.32,0.79206241]
[1756997681098,0.72107927,846.94,846.32,0.79206241]
[1756997681298,0.72107927,846.95,846.32,0.79206241]
[1756997681902,1.51549309,846.95,846.32,0.79206241]
[1756997682102,0.72107927,846.94,846.32,0.79206241]
[1756997682502,1.51549309,846.94,846.32,0.79206241]
[1756997682799,0.72107927,846.93,846.32,0.79206241]
[1756997683400,0.72107927,846.94,846.32,0.79206241]
[1756997687209,0.72107927,846.94,846.27,0.79206241]
[1756997687409,0.72107927,847.02,846.27,0.79206241]
[1756997688208,0.72107927,847.02,846.26,0.79206241]
[1756997688505,0.72107927,847.03,846.26,0.79206241]
[1756997689306,1.51549309,847.03,846.26,0.79206241]
[1756997689508,0.72107927,847.02,846.26,0.79206241]
[1756997690910,0.72072511,847.02,846.26,0.79206241]
[1756997691108,0.72072511,847.02,846.25,0.79206241]
[1756997692112,0.72072511,847.03,846.25,0.79206241]
[1756997693811,0.72072511,847.03,844.64,3.6972534]
[1756997693812,0.72072511,847.03,846.24,0.79206241]
[1756997694010,0.72072511,847.04,846.24,0.79206241]
[1756997695314,0.72072511,847.05,846.24,0.79206241]
[1756997697118,0.79441382,847.02,846.26,0.79206241]
[1756997697316,0.79441382,847.02,844.56,3.6972534]
[1756997697317,1.51513893,847.01,846.27,0.79206241]
[1756997697516,0.72072511,847.0,846.27,0.79206241]
[1756997698114,1.51513893,847.0,846.27,0.79206241]
[1756997698313,0.72072511,846.99,846.27,0.79206241]
[1756997698513,0.72072511,846.99,846.26,0.79206241]
[1756997698716,0.72072511,847.01,846.26,0.79206241]
[1756997699220,0.72072511,847.01,846.25,0.79206241]
[1756997699420,0.72072511,847.02,846.25,0.79206241]
[1756997700418,0.72072511,847.02,845.11,2.6408953]
[1756997700419,1.51513893,847.02,846.26,0.79206241]
[1756997700618,1.51513893,847.01,846.24,0.79206241]
[1756997700821,0.72072511,847.0,846.23,0.79206241]
[1756997701020,0.79441382,847.03,846.23,0.79206241]
[1756997701021,0.72072511,847.02,846.23,0.79206241]
[1756997702420,0.72072511,847.02,846.22,0.79206241]
[1756997702623,0.72072511,847.03,846.23,0.79206241]
[1756997703423,0.72072511,847.03,846.22,0.79206241]
[1756997703624,1.51513893,847.03,846.23,0.79206241]
[1756997703820,0.72072511,847.02,846.23,0.79206241]
[1756997705325,1.51513893,847.02,846.23,0.79206241]
[1756997705625,0.72072511,847.01,846.24,0.79206241]
[1756997706322,0.72072511,847.01,846.23,0.79206241]
[1756997706528,0.72072511,847.05,846.24,0.79206241]
[1756997706826,0.72072511,847.06,846.24,0.79206241]
[1756997707327,1.51513893,847.06,846.23,0.79206241]
[1756997707524,1.51513893,847.05,846.25,0.79206241]
[1756997707824,0.72072511,847.04,846.25,0.79206241]
[1756997709023,0.72072511,847.04,845.83,1.5845371]
[1756997709024,0.79441382,847.03,846.26,0.79206241]
[1756997709229,0.72072511,847.02,846.26,0.79206241]
[1756997710228,1.51513893,847.02,846.26,0.79206241]
[1756997710433,0.72072511,847.01,846.26,0.79206241]
[1756997711334,0.72072511,847.01,846.27,0.79206241]
[1756997711836,1.51513893,847.01,846.27,0.79206241]
[1756997712036,0.72072511,847.0,846.27,0.79206241]
[1756997712432,0.72072511,847.0,846.28,0.79206241]
[1756997712933,1.51513893,847.0,846.28,0.79206241]
[1756997713236,0.72072511,846.99,846.28,0.79206241]
[1756997713436,0.72072511,846.99,846.27,0.79206241]
[1756997713635,0.79441382,847.02,846.26,0.79206241]
[1756997713636,0.72072511,847.01,846.26,0.79206241]
[1756997713834,0.72072511,847.01,845.09,2.6408953]
[1756997713835,0.72072511,847.01,846.19,0.79206241]
[1756997714137,0.79441382,847.03,846.2,0.79206241]
[1756997714334,0.72072511,847.02,846.2,0.79206241]
[1756997714535,1.51513893,847.02,846.19,0.79206241]
[1756997714737,0.72072511,847.01,846.19,0.79206241]
[1756997715236,1.51513893,847.01,846.2,0.79206241]
[1756997715439,0.79441382,846.94,846.25,0.79206241]
[1756997715640,0.72072511,846.93,846.25,0.79206241]
[1756997715840,0.72072511,846.93,846.23,0.79206241]
[1756997716042,0.72072511,846.94,846.23,0.79206241]
[1756997716242,1.51513893,846.94,846.23,0.79206241]
[1756997716442,0.72072511,846.93,846.23,0.79206241]
[1756997716739,0.79441382,846.91,846.14,0.79206241]
[1756997717045,1.51513893,846.9,846.14,0.79206241]
[1756997717241,0.72072511,846.89,846.14,0.79206241]
[1756997717539,0.72072511,846.89,846.13,0.79206241]
[1756997717943,0.72072511,846.9,846.13,0.79206241]
[1756997718838,0.72072511,846.91,846.13,0.79206241]
[1756997719139,1.51513893,846.91,846.14,0.79206241]
[1756997719342,0.72072511,846.9,846.14,0.79206241]
[1756997719541,0.72072511,846.91,846.14,0.79206241]
[1756997719843,0.79441382,846.88,846.12,0.79206241]
[1756997720038,0.72072511,846.87,846.13,0.79206241]
[1756997720440,0.72072511,846.87,846.12,0.79206241]
[1756997721142,1.51513893,846.87,846.13,0.79206241]
[1756997721343,0.72072511,846.86,846.13,0.79206241]
[1756997721543,0.72072511,846.86,845.93,1.0563581]
[1756997721544,0.72072511,846.86,846.12,0.79206241]
[1756997721743,1.51513893,846.87,846.12,0.79206241]
[1756997721942,1.5862259,847.27,845.92,1.0563581]
[1756997721943,0.79441382,846.85,846.11,0.79206241]
[1756997722143,0.79441382,846.83,846.12,0.79206241]
[1756997722344,0.72072511,846.84,846.13,0.79206241]
[1756997722345,0.72072511,846.82,846.13,0.79206241]
[1756997722544,0.72072511,846.83,846.13,0.79206241]
[1756997722845,0.79441382,846.82,846.1,0.79206241]
[1756997723140,0.72072511,846.81,846.11,0.79206241]
[1756997723541,0.72072511,846.81,846.1,0.79206241]
[1756997723744,0.72072511,846.82,846.1,0.79206241]
[1756997724646,0.72072511,846.83,846.1,0.79206241]
[1756997724846,0.72072511,846.83,846.11,0.79206241]
[1756997725046,0.72072511,846.84,846.11,0.79206241]
[1756997725646,0.79441382,846.83,846.12,0.79206241]
[1756997725846,0.72072511,846.82,846.12,0.79206241]
[1756997726547,1.51513893,846.82,846.13,0.79206241]
[1756997726846,0.72072511,846.81,846.13,0.79206241]